Workbook

Sheet Name
A2: Angle | B2: 50
A3: Speed | B3: 800
A6: Time | B6: ΔX | C6: ΔY
A7: …
A8: 5 | B8: =s*COS(RADIANS(theta))*dT -> 257.1150439 | C8: =(s*SIN(RADIANS(theta))-g*A8)*dT -> 225.9927772
B9: =$B$3*COS(RADIANS($B$2)) -> 514.2300877
A13: Name1 | B13: Value1
A14: Name2 | B14: Value2
A15: Name3 | B15: Value3
A18: 10 | C18: =SUM(RelRangeToSum) -> 197
A19: 24 | C19: =SUM(RelRangeToSum) -> 187
A20: 74
A21: 89
A23: =SUM(RangeToSum) -> 197
A24: =SumOfRangeToSum -> 197

Sheet Macro
A1: Alpha1 | B1: 33 | E1: [0,1] | K1: Iteration
A2: (.15) | B2: =B1/100 -> 0.33 | E2: by .01
B4: 0 | C4: 0 | D4: 0 | E4: 0 | F4: 0 | G4: 0 | H4: 0 | I4: 0 | J4: 0 | K4: 0
B5: 10 | C5: 0 | D5: 0 | E5: 0 | F5: 0 | G5: 0 | H5: 0 | I5: 0 | J5: 10
B6: 20 | C6: 0 | D6: 0 | E6: 0 | F6: 0 | G6: 0 | H6: 0 | I6: 0 | J6: 20
B7: 30 | C7: 0 | D7: 0 | E7: 0 | F7: 0 | G7: 0 | H7: 0 | I7: 0 | J7: 30
B8: 40 | C8: 0 | D8: 0 | E8: 0 | F8: 0 | G8: 0 | H8: 0 | I8: 0 | J8: 40
B9: 50 | C9: 0 | D9: 0 | E9: 0 | F9: 0 | G9: 0 | H9: 0 | I9: 0 | J9: 50
B10: 40 | C10: 0 | D10: 0 | E10: 0 | F10: 0 | G10: 0 | H10: 0 | I10: 0 | J10: 40
B11: 30 | C11: 0 | D11: 0 | E11: 0 | F11: 0 | G11: 0 | H11: 0 | I11: 0 | J11: 30
B12: 20 | C12: 0 | D12: 0 | E12: 0 | F12: 0 | G12: 0 | H12: 0 | I12: 0 | J12: 20
B13: 10 | C13: 0 | D13: 0 | E13: 0 | F13: 0 | G13: 0 | H13: 0 | I13: 0 | J13: 10
B14: 0 | C14: 0 | D14: 0 | E14: 0 | F14: 0 | G14: 0 | H14: 0 | I14: 0 | J14: 0
B16: 0 | C16: 0 | D16: 0 | E16: 0 | F16: 0 | G16: 0 | H16: 0 | I16: 0 | J16: 0 | K16: =K4+1 -> 1
B17: 10 | C17: =(1-4*Alpha1)*C5+Alpha1*(B5+D5+C4+C6) -> 3.3 | D17: 0 | E17: 0 | F17: 0 | G17: 0 | H17: 0 | I17: 3.3 | J17: 10
B18: 20 | C18: 6.6 | D18: 0 | E18: 0 | F18: 0 | G18: 0 | H18: 0 | I18: 6.6 | J18: 20
B19: 30 | C19: 9.9 | D19: 0 | E19: 0 | F19: 0 | G19: 0 | H19: 0 | I19: 9.9 | J19: 30
B20: 40 | C20: 13.2 | D20: 0 | E20: 0 | F20: 0 | G20: 0 | H20: 0 | I20: 13.2 | J20: 40
B21: 50 | C21: 16.5 | D21: 0 | E21: 0 | F21: 0 | G21: 0 | H21: 0 | I21: 16.5 | J21: 50
B22: 40 | C22: 13.2 | D22: 0 | E22: 0 | F22: 0 | G22: 0 | H22: 0 | I22: 13.2 | J22: 40
B23: 30 | C23: 9.9 | D23: 0 | E23: 0 | F23: 0 | G23: 0 | H23: 0 | I23: 9.9 | J23: 30
B24: 20 | C24: 6.6 | D24: 0 | E24: 0 | F24: 0 | G24: 0 | H24: 0 | I24: 6.6 | J24: 20
B25: 10 | C25: 3.3 | D25: 0 | E25: 0 | F25: 0 | G25: 0 | H25: 0 | I25: 3.3 | J25: 10
B26: 0 | C26: 0 | D26: 0 | E26: 0 | F26: 0 | G26: 0 | H26: 0 | I26: 0 | J26: 0

Sheet Macro2
A1: Alpha1 | B1: 15 | K1: Iteration
A2: (.15) | B2: =B1/100 -> 0.15
B4: 0 | C4: 0 | D4: 0 | E4: 0 | F4: 0 | G4: 0 | H4: 0 | I4: 0 | J4: 0 | K4: 0
B5: 10 | C5: 0 | D5: 0 | E5: 0 | F5: 0 | G5: 0 | H5: 0 | I5: 0 | J5: 10
B6: 20 | C6: 0 | D6: 0 | E6: 0 | F6: 0 | G6: 0 | H6: 0 | I6: 0 | J6: 20
B7: 30 | C7: 0 | D7: 0 | E7: 0 | F7: 0 | G7: 0 | H7: 0 | I7: 0 | J7: 30
B8: 40 | C8: 0 | D8: 0 | E8: 0 | F8: 0 | G8: 0 | H8: 0 | I8: 0 | J8: 40
B9: 50 | C9: 0 | D9: 0 | E9: 0 | F9: 0 | G9: 0 | H9: 0 | I9: 0 | J9: 50
B10: 40 | C10: 0 | D10: 0 | E10: 0 | F10: 0 | G10: 0 | H10: 0 | I10: 0 | J10: 40
B11: 30 | C11: 0 | D11: 0 | E11: 0 | F11: 0 | G11: 0 | H11: 0 | I11: 0 | J11: 30
B12: 20 | C12: 0 | D12: 0 | E12: 0 | F12: 0 | G12: 0 | H12: 0 | I12: 0 | J12: 20
B13: 10 | C13: 0 | D13: 0 | E13: 0 | F13: 0 | G13: 0 | H13: 0 | I13: 0 | J13: 10
B14: 0 | C14: 0 | D14: 0 | E14: 0 | F14: 0 | G14: 0 | H14: 0 | I14: 0 | J14: 0
B16: 0 | C16: 0 | D16: 0 | E16: 0 | F16: 0 | G16: 0 | H16: 0 | I16: 0 | J16: 0 | K16: =K4+1 -> 1
B17: 10 | C17: =(1-4*Alpha1)*C5+Alpha1*(B5+D5+C4+C6) -> 1.5 | D17: 0 | E17: 0 | F17: 0 | G17: 0 | H17: 0 | I17: 1.5 | J17: 10
B18: 20 | C18: 3 | D18: 0 | E18: 0 | F18: 0 | G18: 0 | H18: 0 | I18: 3 | J18: 20
B19: 30 | C19: 4.5 | D19: 0 | E19: 0 | F19: 0 | G19: 0 | H19: 0 | I19: 4.5 | J19: 30
B20: 40 | C20: 6 | D20: 0 | E20: 0 | F20: 0 | G20: 0 | H20: 0 | I20: 6 | J20: 40
B21: 50 | C21: 7.5 | D21: 0 | E21: 0 | F21: 0 | G21: 0 | H21: 0 | I21: 7.5 | J21: 50
B22: 40 | C22: 6 | D22: 0 | E22: 0 | F22: 0 | G22: 0 | H22: 0 | I22: 6 | J22: 40
B23: 30 | C23: 4.5 | D23: 0 | E23: 0 | F23: 0 | G23: 0 | H23: 0 | I23: 4.5 | J23: 30
B24: 20 | C24: 3 | D24: 0 | E24: 0 | F24: 0 | G24: 0 | H24: 0 | I24: 3 | J24: 20
B25: 10 | C25: 1.5 | D25: 0 | E25: 0 | F25: 0 | G25: 0 | H25: 0 | I25: 1.5 | J25: 10
B26: 0 | C26: 0 | D26: 0 | E26: 0 | F26: 0 | G26: 0 | H26: 0 | I26: 0 | J26: 0
B28: 0 | C28: 0 | D28: 0 | E28: 0 | F28: 0 | G28: 0 | H28: 0 | I28: 0 | J28: 0 | K28: =K16+1 -> 2
B29: 10 | C29: =(1-4*Alpha1)*C17+Alpha1*(B17+D17+C16+C18) -> 2.55 | D29: 0.225 | E29: 0 | F29: 0 | G29: 0 | H29: 0.225 | I29: 2.55 | J29: 10
B30: 20 | C30: 5.1 | D30: 0.45 | E30: 0 | F30: 0 | G30: 0 | H30: 0.45 | I30: 5.1 | J30: 20
B31: 30 | C31: 7.65 | D31: 0.675 | E31: 0 | F31: 0 | G31: 0 | H31: 0.675 | I31: 7.65 | J31: 30
B32: 40 | C32: 10.2 | D32: 0.9 | E32: 0 | F32: 0 | G32: 0 | H32: 0.9 | I32: 10.2 | J32: 40
B33: 50 | C33: 12.3 | D33: 1.125 | E33: 0 | F33: 0 | G33: 0 | H33: 1.125 | I33: 12.3 | J33: 50
B34: 40 | C34: 10.2 | D34: 0.9 | E34: 0 | F34: 0 | G34: 0 | H34: 0.9 | I34: 10.2 | J34: 40
B35: 30 | C35: 7.65 | D35: 0.675 | E35: 0 | F35: 0 | G35: 0 | H35: 0.675 | I35: 7.65 | J35: 30
B36: 20 | C36: 5.1 | D36: 0.45 | E36: 0 | F36: 0 | G36: 0 | H36: 0.45 | I36: 5.1 | J36: 20
B37: 10 | C37: 2.55 | D37: 0.225 | E37: 0 | F37: 0 | G37: 0 | H37: 0.225 | I37: 2.55 | J37: 10
B38: 0 | C38: 0 | D38: 0 | E38: 0 | F38: 0 | G38: 0 | H38: 0 | I38: 0 | J38: 0
B40: 0 | C40: 0 | D40: 0 | E40: 0 | F40: 0 | G40: 0 | H40: 0 | I40: 0 | J40: 0 | K40: =K28+1 -> 3
B41: 10 | C41: =(1-4*Alpha1)*C29+Alpha1*(B29+D29+C28+C30) -> 3.31875 | D41: 0.54 | E41: 0.03375 | F41: 0 | G41: 0.03375 | H41: 0.54 | I41: 3.31875 | J41: 10
B42: 20 | C42: 6.6375 | D42: 1.08 | E42: 0.0675 | F42: 0 | G42: 0.0675 | H42: 1.08 | I42: 6.6375 | J42: 20
B43: 30 | C43: 9.95625 | D43: 1.62 | E43: 0.10125 | F43: 0 | G43: 0.10125 | H43: 1.62 | I43: 9.95625 | J43: 30
B44: 40 | C44: 13.2075 | D44: 2.16 | E44: 0.135 | F44: 0 | G44: 0.135 | H44: 2.16 | I44: 13.2075 | J44: 40
B45: 50 | C45: 15.64875 | D45: 2.565 | E45: 0.16875 | F45: 0 | G45: 0.16875 | H45: 2.565 | I45: 15.64875 | J45: 50
B46: 40 | C46: 13.2075 | D46: 2.16 | E46: 0.135 | F46: 0 | G46: 0.135 | H46: 2.16 | I46: 13.2075 | J46: 40
B47: 30 | C47: 9.95625 | D47: 1.62 | E47: 0.10125 | F47: 0 | G47: 0.10125 | H47: 1.62 | I47: 9.95625 | J47: 30
B48: 20 | C48: 6.6375 | D48: 1.08 | E48: 0.0675 | F48: 0 | G48: 0.0675 | H48: 1.08 | I48: 6.6375 | J48: 20
B49: 10 | C49: 3.31875 | D49: 0.54 | E49: 0.03375 | F49: 0 | G49: 0.03375 | H49: 0.54 | I49: 3.31875 | J49: 10
B50: 0 | C50: 0 | D50: 0 | E50: 0 | F50: 0 | G50: 0 | H50: 0 | I50: 0 | J50: 0
B52: 0 | C52: 0 | D52: 0 | E52: 0 | F52: 0 | G52: 0 | H52: 0 | I52: 0 | J52: 0 | K52: =K40+1 -> 4
B53: 10 | C53: =(1-4*Alpha1)*C41+Alpha1*(B41+D41+C40+C42) -> 3.904125 | D53: 0.880875 | E53: 0.104625 | F53: 0.010125 | G53: 0.104625 | H53: 0.880875 | I53: 3.904125 | J53: 10
B54: 20 | C54: 7.80825 | D54: 1.76175 | E54: 0.20925 | F54: 0.02025 | G54: 0.20925 | H54: 1.76175 | I54: 7.80825 | J54: 20
B55: 30 | C55: 11.70225 | D55: 2.642625 | E55: 0.313875 | F55: 0.030375 | G55: 0.313875 | H55: 2.642625 | I55: 11.70225 | J55: 30
B56: 40 | C56: 15.44775 | D56: 3.493125 | E56: 0.4185 | F56: 0.0405 | G56: 0.4185 | H56: 3.493125 | I56: 15.44775 | J56: 40
B57: 50 | C57: 18.1065 | D57: 4.046625 | E57: 0.49275 | F57: 0.050625 | G57: 0.49275 | H57: 4.046625 | I57: 18.1065 | J57: 50
B58: 40 | C58: 15.44775 | D58: 3.493125 | E58: 0.4185 | F58: 0.0405 | G58: 0.4185 | H58: 3.493125 | I58: 15.44775 | J58: 40
B59: 30 | C59: 11.70225 | D59: 2.642625 | E59: 0.313875 | F59: 0.030375 | G59: 0.313875 | H59: 2.642625 | I59: 11.70225 | J59: 30
B60: 20 | C60: 7.80825 | D60: 1.76175 | E60: 0.20925 | F60: 0.02025 | G60: 0.20925 | H60: 1.76175 | I60: 7.80825 | J60: 20
B61: 10 | C61: 3.904125 | D61: 0.880875 | E61: 0.104625 | F61: 0.010125 | G61: 0.104625 | H61: 0.880875 | I61: 3.904125 | J61: 10
B62: 0 | C62: 0 | D62: 0 | E62: 0 | F62: 0 | G62: 0 | H62: 0 | I62: 0 | J62: 0
B64: 0 | C64: 0 | D64: 0 | E64: 0 | F64: 0 | G64: 0 | H64: 0 | I64: 0 | J64: 0 | K64: =K52+1 -> 5
B65: 10 | C65: =(1-4*Alpha1)*C53+Alpha1*(B53+D53+C52+C54) -> 4.36501875 | D65: 1.217925 | E65: 0.2068875 | F65: 0.038475 | G65: 0.2068875 | H65: 1.217925 | I65: 4.36501875 | J65: 10
B66: 20 | C66: 8.72851875 | D66: 2.43585 | E66: 0.413775 | F66: 0.07695 | G66: 0.413775 | H66: 2.43585 | I66: 8.72851875 | J66: 20
B67: 30 | C67: 13.06569375 | D67: 3.6477 | E67: 0.6206625 | F67: 0.115425 | G67: 0.6206625 | H67: 3.6477 | I67: 13.06569375 | J67: 30
B68: 40 | C68: 17.17438125 | D68: 4.780575 | E68: 0.8184375 | F68: 0.1539 | G68: 0.8184375 | H68: 4.780575 | I68: 17.17438125 | J68: 40
B69: 50 | C69: 19.98391875 | D69: 5.456475 | E69: 0.9372375 | F69: 0.180225 | G69: 0.9372375 | H69: 5.456475 | I69: 19.98391875 | J69: 50
B70: 40 | C70: 17.17438125 | D70: 4.780575 | E70: 0.8184375 | F70: 0.1539 | G70: 0.8184375 | H70: 4.780575 | I70: 17.17438125 | J70: 40
B71: 30 | C71: 13.06569375 | D71: 3.6477 | E71: 0.6206625 | F71: 0.115425 | G71: 0.6206625 | H71: 3.6477 | I71: 13.06569375 | J71: 30
B72: 20 | C72: 8.72851875 | D72: 2.43585 | E72: 0.413775 | F72: 0.07695 | G72: 0.413775 | H72: 2.43585 | I72: 8.72851875 | J72: 20
B73: 10 | C73: 4.36501875 | D73: 1.217925 | E73: 0.2068875 | F73: 0.038475 | G73: 0.2068875 | H73: 1.217925 | I73: 4.36501875 | J73: 10
B74: 0 | C74: 0 | D74: 0 | E74: 0 | F74: 0 | G74: 0 | H74: 0 | I74: 0 | J74: 0

Sheet Macro3
A1: Alpha1 | B1: 15 | K1: Iteration | L1: 20
A2: (.15) | B2: =B1/100 -> 0.15
B4: 0 | C4: 0 | D4: 0 | E4: 0 | F4: 0 | G4: 0 | H4: 0 | I4: 0 | J4: 0 | K4: 0
B5: 10 | C5: 0 | D5: 0 | E5: 0 | F5: 0 | G5: 0 | H5: 0 | I5: 0 | J5: 10
B6: 20 | C6: 0 | D6: 0 | E6: 0 | F6: 0 | G6: 0 | H6: 0 | I6: 0 | J6: 20
B7: 30 | C7: 0 | D7: 0 | E7: 0 | F7: 0 | G7: 0 | H7: 0 | I7: 0 | J7: 30
B8: 40 | C8: 0 | D8: 0 | E8: 0 | F8: 0 | G8: 0 | H8: 0 | I8: 0 | J8: 40
B9: 50 | C9: 0 | D9: 0 | E9: 0 | F9: 0 | G9: 0 | H9: 0 | I9: 0 | J9: 50
B10: 40 | C10: 0 | D10: 0 | E10: 0 | F10: 0 | G10: 0 | H10: 0 | I10: 0 | J10: 40
B11: 30 | C11: 0 | D11: 0 | E11: 0 | F11: 0 | G11: 0 | H11: 0 | I11: 0 | J11: 30
B12: 20 | C12: 0 | D12: 0 | E12: 0 | F12: 0 | G12: 0 | H12: 0 | I12: 0 | J12: 20
B13: 10 | C13: 0 | D13: 0 | E13: 0 | F13: 0 | G13: 0 | H13: 0 | I13: 0 | J13: 10
B14: 0 | C14: 0 | D14: 0 | E14: 0 | F14: 0 | G14: 0 | H14: 0 | I14: 0 | J14: 0
B16: 0 | C16: 0 | D16: 0 | E16: 0 | F16: 0 | G16: 0 | H16: 0 | I16: 0 | J16: 0 | K16: =K4+1 -> 1
B17: 10 | C17: =(1-4*Alpha1)*C5+Alpha1*(B5+D5+C4+C6) -> 1.5 | D17: 0 | E17: 0 | F17: 0 | G17: 0 | H17: 0 | I17: 1.5 | J17: 10
B18: 20 | C18: 3 | D18: 0 | E18: 0 | F18: 0 | G18: 0 | H18: 0 | I18: 3 | J18: 20
B19: 30 | C19: 4.5 | D19: 0 | E19: 0 | F19: 0 | G19: 0 | H19: 0 | I19: 4.5 | J19: 30
B20: 40 | C20: 6 | D20: 0 | E20: 0 | F20: 0 | G20: 0 | H20: 0 | I20: 6 | J20: 40
B21: 50 | C21: 7.5 | D21: 0 | E21: 0 | F21: 0 | G21: 0 | H21: 0 | I21: 7.5 | J21: 50
B22: 40 | C22: 6 | D22: 0 | E22: 0 | F22: 0 | G22: 0 | H22: 0 | I22: 6 | J22: 40
B23: 30 | C23: 4.5 | D23: 0 | E23: 0 | F23: 0 | G23: 0 | H23: 0 | I23: 4.5 | J23: 30
B24: 20 | C24: 3 | D24: 0 | E24: 0 | F24: 0 | G24: 0 | H24: 0 | I24: 3 | J24: 20
B25: 10 | C25: 1.5 | D25: 0 | E25: 0 | F25: 0 | G25: 0 | H25: 0 | I25: 1.5 | J25: 10
B26: 0 | C26: 0 | D26: 0 | E26: 0 | F26: 0 | G26: 0 | H26: 0 | I26: 0 | J26: 0
